Cogmind - Beta 10.1 @@@ ROGUE MODE // 2020.10.11 @ 04:12:57 Player: Tmvn Result: Destroyed by P-80 Master with Gamma Rifle Performance ------------- Evolutions (8) 4000 Regions Visited (16) 3200 Robots Destroyed (61) 305 Value Destroyed (2110) 2110 Prototype IDs (30) 600 Alien Tech Used (0) 0 Bonus (1800) 1800 TOTAL SCORE: 12015 Bonus ------- Triggered Max Security 1000 Aligned with FarCom 300 Scanned by Researcher 500 Cogmind --------- Core Integrity 0/1450 Matter 231/300 Energy 98/100 System Corruption 5% Temperature Cool (9) Movement Core (50) Location -2/Testing Parts ------- > --- POWER (2) -------- (None) > --- PROPULSION (6) --- (None) > --- UTILITY (13) ----- (None) > --- WEAPON (2) ------- (None) > --- INVENTORY (4) ---- Field Propulsion Drive Stasis Projector Peak State ------------ > --- POWER ------------ Light Antimatter Reactor Quantum Reactor > --- PROPULSION ------- Antigrav System Improved Antigrav System Antigrav Array Q-thruster > --- UTILITY ---------- Experimental Power Amplifier Advanced Coolant Injector Advanced Coolant Injector Advanced Coolant Injector Advanced Core Analyzer Experimental Thermal Shield Hacking Suite > --- WEAPON ----------- Tesla Rifle Nova Cannon > --- INVENTORY -------- Micro Fission Core Light Quantum Reactor Heavy Neutron Cannon [Rating: 119] Favorites ----------- Power Angular Momentum Engine Engine Angular Momentum Engine Power Core Micro Fission Core Reactor Quantum Reactor Propulsion Light Treads Treads Light Treads Leg Improved Titanium Leg Hover Unit Combat Airjet Flight Unit Q-thruster Utility High-capacity Storage Unit Device Improved Maneuvering Thrusters Storage High-capacity Storage Unit Processor Improved Signal Interpreter Hackware Hacking Suite Protection Improved Medium Armor Plating Weapon Flak Gun Energy Gun AWS/Thermal Energy Cannon Nova Cannon Ballistic Gun Flak Gun Ballistic Cannon Enhanced Gauss Cannon Launcher Micro-nuke Launcher Special Weapon Stasis Projector Slashing Weapon Greatsword Build | -11 -10 -10 -10 -9 -8 -7 -7 -7 -6 -6 -6 -5 -4 -3 -2 -2 ------- Run | Scr Mat Min Exi Min Mat Fac Was Fac Fac Was Fac Fac Fac Res Res Tes Slots Evolved 16 | . . . . . 4 2 . . 2 . . 2 2 2 2 . Power 1 | . . . . . . . . . 1 . . . . . . . Propulsion 4 | . . . . . 1 1 . . . . . 1 . 1 . . Utility 11 | . . . . . 3 1 . . 1 . . 1 2 1 2 . Weapon . | . . . . . . . . . . . . . . . . . Parts Attached 153 | . 11 . . . 12 15 5 6 5 2 38 9 2 20 16 12 Power 30 | . 4 . . . 1 3 . 1 1 2 7 2 . 3 3 3 Engine 21 | . 4 . . . 1 3 . 1 1 2 7 2 . . . . Core 3 | . . . . . . . . . . . . . . 2 . 1 Reactor 6 | . . . . . . . . . . . . . . 1 3 2 Propulsion 43 | . 4 . . . 5 4 1 2 . . 7 2 . 7 4 7 Treads 13 | . 4 . . . 5 4 . . . . . . . . . . Leg 1 | . . . . . . . . 1 . . . . . . . . Wheel . | . . . . . . . . . . . . . . . . . Hover 25 | . . . . . . . . 1 . . 7 2 . 7 2 6 Flight 4 | . . . . . . . 1 . . . . . . . 2 1 Utility 52 | . 2 . . . 4 6 4 2 4 . 12 4 2 5 6 1 Device 14 | . . . . . 1 1 . 1 . . 2 . . 3 5 1 Storage 5 | . 2 . . . 1 . . . . . 2 . . . . . Processor 8 | . . . . . . 2 1 1 3 . . . . . 1 . Hackware 7 | . . . . . . 1 2 . 1 . 1 . 1 1 . . Protection 18 | . . . . . 2 2 1 . . . 7 4 1 1 . . Artifact . | . . . . . . . . . . . . . . . . . Weapon 28 | . 1 . . . 2 2 . 1 . . 12 1 . 5 3 1 Energy Gun 7 | . . . . . . . . . . . 6 . . . 1 . Energy Cannon 4 | . . . . . . . . . . . . . . 2 2 . Ballistic Gun 5 | . 1 . . . 2 2 . . . . . . . . . . Ballistic Cannon 2 | . . . . . . . . . . . . . . 2 . . Launcher 1 | . . . . . . . . . . . . . . 1 . . Special Weapon 1 | . . . . . . . . . . . . . . . . 1 Impact Weapon . | . . . . . . . . . . . . . . . . . Slashing Weapon 8 | . . . . . . . . 1 . . 6 1 . . . . Piercing Weapon . | . . . . . . . . . . . . . . . . . Special Melee Weapon . | . . . . . . . . . . . . . . . . . Unidentified Prototypes 6 | . . . . . 1 . . . . . . . . 1 3 1 Parts Lost 44 | . 1 . . . . 1 2 . . 2 3 . . 21 10 4 Power 10 | . 1 . . . . . . . . 1 1 . . 5 1 1 Propulsion 14 | . . . . . . . 1 . . 1 1 . . 5 4 2 Utility 14 | . . . . . . . 1 . . . 1 . . 8 3 1 Weapon 6 | . . . . . . 1 . . . . . . . 3 2 . Highest Loss Streak 11 | . 1 . . . . 1 1 . . 2 3 . . 11 6 3 Average Slot Usage (%) 82 | . 95 100 100 100 83 98 52 42 64 47 85 88 89 72 50 14 Engine 9 | . 13 14 14 14 9 7 1 . 6 2 11 11 10 6 . . Treads 11 | . 26 28 28 28 24 30 4 . . . . . . . . . Hover 9 | . . . . . . . . . 6 2 22 23 21 15 4 7 Device 4 | . . . . . . 4 . 4 6 6 9 5 5 5 16 2 Storage 12 | . 24 28 28 28 23 23 3 . . . 4 5 5 3 . . Processor 5 | . . . . . . . 12 13 30 22 12 5 5 4 7 . Hackware 5 | . . . . . . 2 12 7 7 9 6 11 15 14 7 . Protection 8 | . . . . . 7 12 12 7 . . 9 17 21 13 3 . Energy Gun 1 | . 6 . . . . . . . . . 1 . . . . . Ballistic Gun 8 | . 20 28 28 28 18 14 2 . . . . . . . . . Slashing Weapon 1 | . . . . . . . . . . . 4 4 5 2 . . Naked Turns 108 | . . . . . . . . . . . . . . . 12 96 Heaviest Build 104 | 13 59 59 59 59 99 104 99 11 21 11 80 80 78 90 59 23 Greatest Support 111 | 20 40 40 40 40 60 96 96 11 11 11 88 84 84 111 69 68 Greatest Overweight (x) 29 | . 1 1 1 1 1 1 3 1 1 3 1 . . 29 3 2 Average Overweight (x) . | . . 1 1 1 1 1 . . . . . . . . . . Largest Inventory Capacity 26 | . 18 18 18 18 26 26 26 4 4 4 12 12 12 12 4 4 Average Capacity 13 | . 12 18 18 18 23 26 6 4 4 4 9 12 12 11 4 4 Most Carried 26 | . 16 17 18 18 26 26 26 4 4 4 12 12 12 12 4 2 Average Carried 12 | . 10 16 17 18 20 25 6 3 4 3 8 10 11 10 2 1 Final Capacity 26 | 6 18 18 18 18 26 26 4 4 4 4 12 12 12 4 4 4 Final Carried 26 | 6 16 17 18 18 26 26 4 4 4 4 12 12 12 1 2 2 Class Distribution -------------------- 54% | Mutant 27% | Hacker-Mutant 10% | Hauler-Mutant 6% | Hauler-Skirmisher Dominant Class ---------------- Mutant | -10/Materials Mutant | -10/Mines Mutant | -10/Exiles Mutant | -9/Mines Hauler-Mutant | -8/Materials Hauler-Skirmisher | -7/Factory Hacker-Mutant | -7/Waste Mutant | -7/Factory Mutant | -6/Factory Hacker-Mutant | -6/Waste Mutant | -6/Factory Hacker-Mutant | -5/Factory Hacker-Mutant | -4/Factory Hacker-Mutant | -3/Research Hacker-Mutant | -2/Research Mutant | -2/Testing Resources | -11 -10 -10 -10 -9 -8 -7 -7 -7 -6 -6 -6 -5 -4 -3 -2 -2 ----------- Run | Scr Mat Min Exi Min Mat Fac Was Fac Fac Was Fac Fac Fac Res Res Tes Matter Collected 2176 | 174 197 59 . . 238 200 . . . . 787 40 . 350 120 11 Remotely . | . . . . . . . . . . . . . . . . . Salvage Created 3032 | . 379 40 . . 441 160 . . . . 1505 . . 217 290 . Parts 159 | . 35 8 . . 23 14 . . . . 61 . . 5 13 . Haulers Intercepted 3 | . 1 . . . 2 . . . . . . . . . . . Recyclers Shooed 2 | . . . . . . 1 . . . . 1 . . . . . Parts Field Recycled . | . . . . . . . . . . . . . . . . . Retrieved Matter . | . . . . . . . . . . . . . . . . . Parts Self-Destructed . | . . . . . . . . . . . . . . . . . Prevented . | . . . . . . . . . . . . . . . . . Kills | -11 -10 -10 -10 -9 -8 -7 -7 -7 -6 -6 -6 -5 -4 -3 -2 -2 ------- Run | Scr Mat Min Exi Min Mat Fac Was Fac Fac Was Fac Fac Fac Res Res Tes Combat Hostiles Destroyed 44 | . 10 3 . . 5 3 . . . . 17 . . 3 3 . Guns 37 | . 10 3 . . 4 3 . . . . 17 . . . . . Cannons 6 | . . . . . . . . . . . . . . 3 3 . AOE 1 | . . . . . 1 . . . . . . . . . . . Classes Destroyed 12 | . 5 . . . 2 1 . . . . 4 . . . . . Builder 2 | . . . . . . . . . . . 1 . . 1 . . Tunneler 1 | . . . . . . . . . . . 1 . . . . . Hauler 3 | . 1 . . . 2 . . . . . . . . . . . Recycler 7 | . . . . . 2 . . . . . 3 . . 1 1 . Operator 1 | . 1 . . . . . . . . . . . . . . . Watcher 3 | . 2 . . . . . . . . . 1 . . . . . Swarmer 13 | . 6 3 . . . . . . . . 3 . . . 1 . Grunt 13 | . 4 . . . 2 . . . . . 6 . . 1 . . Brawler 1 | . . . . . . . . . . . 1 . . . . . Sentry 7 | . . . . . 3 1 . . . . 3 . . . . . Hunter 2 | . . . . . . . . . . . 2 . . . . . Programmer 8 | . . . . . . 2 . . . . 2 . . 2 2 . Best Kill Streak 5 | . 3 3 . . 5 1 . . . . 4 . . 3 2 . Combat Bots Only 4 | . 3 3 . . 3 1 . . . . 4 . . 2 2 . Max Kills in Single Turn 4 | . 2 2 . . 4 1 . . . . 1 . . 1 1 . Gunslinging 1 | . . 1 . . . . . . . . . . . . . . Exploded 1 | . . . . . 1 . . . . . . . . . . . Melee . | . . . . . . . . . . . . . . . . . Uniques/NPCs Destroyed . | . . . . . . . . . . . . . . . . . Combat | -11 -10 -10 -10 -9 -8 -7 -7 -7 -6 -6 -6 -5 -4 -3 -2 -2 -------- Run | Scr Mat Min Exi Min Mat Fac Was Fac Fac Was Fac Fac Fac Res Res Tes Damage Taken 8555 | . 436 50 . . 445 220 34 . . 91 1144 . . 3133 1437 1565 Core 2656 | . 107 . . . 47 48 34 . . 91 83 . . 783 353 1110 Absorbed by Shields . | . . . . . . . . . . . . . . . . . Core Remaining (%) 81 | 100 . . . 57 91 . . 88 . . 79 100 100 39 . . Volleys Fired 103 | . 30 4 . . 14 8 . . . . 3 . . 22 22 . Largest 2 | . 2 2 . . 2 2 . . . . 1 . . 2 2 . Hottest 178 | . 60 40 . . 56 56 . . . . 60 . . 170 178 . Shots Fired 257 | . 60 8 . . 28 16 . . . . 74 . . 31 40 . Gun 205 | . 60 8 . . 28 16 . . . . 74 . . . 19 . Cannon 49 | . . . . . . . . . . . . . . 28 21 . Launcher 3 | . . . . . . . . . . . . . . 3 . . Special . | . . . . . . . . . . . . . . . . . Kinetic 114 | . 43 8 . . 28 16 . . . . . . . 19 . . Thermal 101 | . . . . . . . . . . . 71 . . 9 21 . Explosive 3 | . . . . . . . . . . . . . . 3 . . Electromagnetic 39 | . 17 . . . . . . . . . 3 . . . 19 . Robot Hit Streak 16 | . 11 7 . . 16 5 . . . . 12 . . 10 5 . Robot Miss Streak 6 | . 2 1 . . 6 6 . . . . 1 . . 5 5 . Penetration Max . | . . . . . . . . . . . . . . . . . Secondary Targets 5 | . 4 1 . . . . . . . . . . . . . . Max Gunslinging Chain 1 | . 1 1 . . . . . . . . . . . . . . Autonomous 71 | . . . . . . . . . . . 71 . . . . . Shots Hit Robots 193 | . 41 7 . . 26 14 . . . . 74 . . 12 19 . Core Hits 125 | . 19 3 . . 27 12 . . . . 40 . . 11 12 1 Critical Hits . | . . . . . . . . . . . . . . . . . Critical Kills . | . . . . . . . . . . . . . . . . . Critical Parts Destroyed . | . . . . . . . . . . . . . . . . . Melee Attacks 62 | . . . . . . . . 1 . . 27 5 2 27 . . Impact . | . . . . . . . . . . . . . . . . . Slashing 62 | . . . . . . . . 1 . . 27 5 2 27 . . Piercing . | . . . . . . . . . . . . . . . . . Sneak Attacks 5 | . . . . . . . . . . . 4 . . 1 . . Combat Hostiles . | . . . . . . . . . . . . . . . . . Follow-up Attacks . | . . . . . . . . . . . . . . . . . Damage Inflicted 6353 | . 640 71 . . 961 294 . . . . 2579 . . 1167 600 41 Guns 3440 | . 524 71 . . 562 294 . . . . 1896 . . . 93 . Cannons 1016 | . . . . . . . . . . . . . . 515 501 . Explosions 970 | . 116 . . . 399 . . . . . . . . 455 . . Melee 801 | . . . . . . . . . . . 654 . . 147 . . Ramming 126 | . . . . . . . . . . . 29 . . 50 6 41 Kinetic 1524 | . 346 71 . . 562 294 . . . . . . . 251 . . Thermal 2710 | . 116 . . . . . . . . . 1829 . . 264 501 . Explosive 854 | . . . . . 399 . . . . . . . . 455 . . Electromagnetic 338 | . 178 . . . . . . . . . 67 . . . 93 . Impact . | . . . . . . . . . . . . . . . . . Slashing 801 | . . . . . . . . . . . 654 . . 147 . . Piercing . | . . . . . . . . . . . . . . . . . Highest Corruption 24 | . . . . . . 4 24 24 . 8 8 4 . 21 . 5 Average Corruption 6 | . . . . . . 2 13 24 . 8 4 4 . 12 . 2 Corruption Purged 8 | . . . . . . . . . . . 8 . . . . . Effects 60 | . . . . . . 10 5 19 . 1 14 3 . 8 . . Message Errors 15 | . . . . . . 2 2 4 . . 6 . . 1 . . Matter Fused 12 | . . . . . . 1 . 3 . 1 5 1 . 1 . . Heat Flow Errors 6 | . . . . . . 2 . 2 . . . . . 2 . . Energy Discharges 4 | . . . . . . 1 . 2 . . 1 . . . . . Data Loss (minor) 8 | . . . . . . 3 . 2 . . . 2 . 1 . . Data Loss (major) 2 | . . . . . . . . . . . 2 . . . . . Alerts 1 | . . . . . . . 1 . . . . . . . . . Misdirections 10 | . . . . . . . 2 6 . . . . . 2 . . Targeting Errors 2 | . . . . . . 1 . . . . . . . 1 . . Overload Shots . | . . . . . . . . . . . . . . . . . Overflow Damage 492 | . 6 . . . 80 . . . . . 260 . . 109 37 . Projectiles 67 | . . . . . . . . . . . . . . 30 37 . Explosions 165 | . 6 . . . 80 . . . . . . . . 79 . . Melee 260 | . . . . . . . . . . . 260 . . . . . Knockbacks 4 | . . . . . . . . . . . . . . 4 . . Impact . | . . . . . . . . . . . . . . . . . Kinetic 3 | . . . . . . . . . . . . . . 3 . . Secondary 1 | . . . . . . . . . . . . . . 1 . . Self-Inflicted Damage 552 | . 77 . . . 157 . . . . . 13 . . 282 3 20 Shots 7 | . 2 . . . 2 . . . . . . . . 3 . . Rammed 18 | . . . . . . . . . . . 9 . . 3 1 5 Targets Rammed 18 | . . . . . . . . . . . 9 . . 3 1 5 Kicked . | . . . . . . . . . . . . . . . . . Crushed . | . . . . . . . . . . . . . . . . . Highest Temperature 476 | . 85 7 . . 11 245 . 238 . . 72 . . 476 197 2 Average Temperature 111 | . 39 4 . . 3 126 . 104 . . 27 . . 157 129 2 Received Heat Transfer 684 | . 102 . . . 135 6 . . . . 123 . . 174 . 144 Effects 6 | . . . . . . . . . . . . . . 6 . . Shutdowns 1 | . . . . . . . . . . . . . . 1 . . Energy Bleed 1 | . . . . . . . . . . . . . . 1 . . Interference 1 | . . . . . . . . . . . . . . 1 . . Damage (major) 3 | . . . . . . . . . . . . . . 3 . . Siege Activations . | . . . . . . . . . . . . . . . . . Robots Corrupted 1 | . . . . . . . . . . . . . . . 1 . Combat Hostiles . | . . . . . . . . . . . . . . . . . Parts Fried 3 | . . . . . . . . . . . 1 . . . 2 . Impact Corruptions . | . . . . . . . . . . . . . . . . . Robots Melted . | . . . . . . . . . . . . . . . . . Combat Hostiles . | . . . . . . . . . . . . . . . . . Parts Melted 16 | . . . . . . . . . . . 14 . . . 2 . Heat Transferred 3074 | . 200 . . . . . . . . . 2257 . . 222 395 . Parts Sabotaged 6 | . . . . . . . . . . . . . . . . 6 Parts Stolen . | . . . . . . . . . . . . . . . . . Parts Stripped . | . . . . . . . . . . . . . . . . . Power Chain Reactions 3 | . 3 . . . . . . . . . . . . . . . Missiles Intercepted . | . . . . . . . . . . . . . . . . . Alert | -11 -10 -10 -10 -9 -8 -7 -7 -7 -6 -6 -6 -5 -4 -3 -2 -2 ------- Run | Scr Mat Min Exi Min Mat Fac Was Fac Fac Was Fac Fac Fac Res Res Tes Peak Influence 1645 | . 215 95 . . 225 60 35 18 23 30 383 81 36 164 118 1645 Initial 57 | . . 25 . . . 33 15 17 8 8 21 40 17 18 57 2 Average 102 | . 116 91 . . 61 26 20 17 18 11 72 39 19 76 63 1624 Maximum Alert Level 5 | . 1 . . . 1 . . . . . 1 . . . . 5 Low Security (%) 90 | . 73 100 . 100 89 100 100 100 100 100 86 100 100 100 100 . Level 1 6 | . 26 . . . 10 . . . . . 13 . . . . . Level 2 . | . . . . . . . . . . . . . . . . . Level 3 . | . . . . . . . . . . . . . . . . . Level 4 . | . . . . . . . . . . . . . . . . . Level 5 . | . . . . . . . . . . . . . . . . . High Security . | . . . . . . . . . . . . . . . . . Max Security 2 | . . . . . . . . . . . . . . . . 99 Squads Dispatched 32 | . 3 . . . 1 3 . . 1 . 3 . 1 4 3 13 Investigation 5 | . 2 . . . 1 1 . . . . . . . 1 . . Extermination 6 | . . . . . . 2 . . . . 2 . . 1 1 . Reinforcement 9 | . 1 . . . . . . . 1 . 1 . 1 2 2 1 Assault 12 | . . . . . . . . . . . . . . . . 12 Garrison . | . . . . . . . . . . . . . . . . . Intercept . | . . . . . . . . . . . . . . . . . Construction Impeded 2 | . . . . . . . . . . . . . . 1 1 . Haulers Reinforced . | . . . . . . . . . . . . . . . . . Stealth | -11 -10 -10 -10 -9 -8 -7 -7 -7 -6 -6 -6 -5 -4 -3 -2 -2 --------- Run | Scr Mat Min Exi Min Mat Fac Was Fac Fac Was Fac Fac Fac Res Res Tes Distress Signals 6 | . . . . . 2 . . . . . 1 . . 3 . . Communications Jammed . | . . . . . . . . . . . . . . . . . Distress Signals . | . . . . . . . . . . . . . . . . . Times Spotted 175 | . 14 3 . . 10 3 3 . 1 6 25 1 3 30 14 62 Peak Tracking Total 40 | . 3 3 . . 3 1 3 . 1 6 5 1 3 12 9 40 Tactical Retreats 14 | . . . . . 2 . . . . . 2 . . 7 1 2 Traps | -11 -10 -10 -10 -9 -8 -7 -7 -7 -6 -6 -6 -5 -4 -3 -2 -2 ------- Run | Scr Mat Min Exi Min Mat Fac Was Fac Fac Was Fac Fac Fac Res Res Tes Traps Triggered 11 | . 1 . . . . 3 . . 1 . 2 4 . . . . Indirectly . | . . . . . . . . . . . . . . . . . Trap Hack Attempts . | . . . . . . . . . . . . . . . . . Triggered . | . . . . . . . . . . . . . . . . . Disarmed . | . . . . . . . . . . . . . . . . . Reprogrammed . | . . . . . . . . . . . . . . . . . Reused . | . . . . . . . . . . . . . . . . . Traps Extracted . | . . . . . . . . . . . . . . . . . Installed . | . . . . . . . . . . . . . . . . . Triggered . | . . . . . . . . . . . . . . . . . Machines | -11 -10 -10 -10 -9 -8 -7 -7 -7 -6 -6 -6 -5 -4 -3 -2 -2 ---------- Run | Scr Mat Min Exi Min Mat Fac Was Fac Fac Was Fac Fac Fac Res Res Tes Machines Disabled 5 | . 2 . . . 2 . . . . . . . . 1 . . Max in Single Turn 2 | . 1 . . . 2 . . . . . . . . 1 . . Garrison Access 4 | . . . . . . . . . . . 1 2 . . 1 . Machines Sabotaged . | . . . . . . . . . . . . . . . . . Garrisons Compromised . | . . . . . . . . . . . . . . . . . Overloaded Fab Kills . | . . . . . . . . . . . . . . . . . Fab Network Shutdowns . | . . . . . . . . . . . . . . . . . Hacking | -11 -10 -10 -10 -9 -8 -7 -7 -7 -6 -6 -6 -5 -4 -3 -2 -2 --------- Run | Scr Mat Min Exi Min Mat Fac Was Fac Fac Was Fac Fac Fac Res Res Tes Machines Accessed 37 | . 4 . 2 . 5 2 . . 1 . 8 7 . 4 4 . Terminals 20 | . 2 . . . 4 1 . . . . 6 4 . 2 1 . Fabricators 4 | . . . . . . . . . 1 . 1 . . 1 1 . Repair Stations . | . . . . . . . . . . . . . . . . . Recycling Units 4 | . 2 . . . 1 . . . . . . . . . 1 . Scanalyzers 2 | . . . . . . 1 . . . . . 1 . . . . Garrison Access 5 | . . . . . . . . . . . 1 2 . 1 1 . Total Hacks 83 | . 9 . 2 . 15 16 . . 2 . 15 11 . 8 5 . Successful 47 | . 6 . 2 . 8 12 . . 2 . 8 6 . 2 1 . Failed 36 | . 3 . . . 7 4 . . . . 7 5 . 6 4 . Catastrophic 10 | . . . . . 3 1 . . . . 3 . . 2 1 . Database Lockouts . | . . . . . . . . . . . . . . . . . Manual 46 | . 7 . 1 . 16 3 . . . . 9 5 . 4 1 . Terminals 47 | . 7 . . . 14 3 . . . . 12 7 . 3 1 . Fabricators 8 | . . . . . . . . . 2 . 2 . . 3 1 . Repair Stations . | . . . . . . . . . . . . . . . . . Recycling Units 5 | . 2 . . . 1 . . . . . . . . . 2 . Scanalyzers 15 | . . . . . . 13 . . . . . 2 . . . . Garrison Access 6 | . . . . . . . . . . . 1 2 . 2 1 . Terminal Hacks 18 | . 2 . 2 . 6 . . . . . 5 2 . 1 . . Record 1 | . . . 1 . . . . . . . . . . . . . Robot Analysis 3 | . 1 . . . 2 . . . . . . . . . . . Level Access Points 1 | . . . . . 1 . . . . . . . . . . . Unreport Threat 4 | . . . . . 1 . . . . . 2 . . 1 . . Locate Traps 4 | . . . . . 1 . . . . . 2 1 . . . . Recall Assault 1 | . . . . . . . . . . . . 1 . . . . Zone Layout 3 | . 1 . . . 1 . . . . . 1 . . . . . EX-Prototype ID Bank 1 | . . . 1 . . . . . . . . . . . . . Fabricator Hacks 5 | . . . . . . . . . 2 . 2 . . 1 . . Load Schematic 2 | . . . . . . . . . 1 . 1 . . . . . Build 3 | . . . . . . . . . 1 . 1 . . 1 . . Repair Station Hacks . | . . . . . . . . . . . . . . . . . Recycling Unit Hacks . | . . . . . . . . . . . . . . . . . Scanalyzer 14 | . . . . . . 12 . . . . . 2 . . . . Insert Component 7 | . . . . . . 6 . . . . . 1 . . . . Analyze 7 | . . . . . . 6 . . . . . 1 . . . . Garrison Access Hacks 4 | . . . . . . . . . . . 1 2 . . 1 . Seal Access 4 | . . . . . . . . . . . 1 2 . . 1 . Unauthorized Hacks 6 | . 4 . . . 2 . . . . . . . . . . . Terminals 3 | . 2 . . . 1 . . . . . . . . . . . Track 2 | . 2 . . . . . . . . . . . . . . . Operators 1 | . . . . . 1 . . . . . . . . . . . Fabricators . | . . . . . . . . . . . . . . . . . Repair Stations . | . . . . . . . . . . . . . . . . . Recycling Units 3 | . 2 . . . 1 . . . . . . . . . . . Tunnel 3 | . 2 . . . 1 . . . . . . . . . . . Scanalyzers . | . . . . . . . . . . . . . . . . . Garrison Access . | . . . . . . . . . . . . . . . . . Data Cores Recovered . | . . . . . . . . . . . . . . . . . Used . | . . . . . . . . . . . . . . . . . Hacking Detections 25 | . 2 . . . 4 2 . . . . 6 5 . 3 3 . Full Trace Events 2 | . . . . . . 1 . . . . . . . 1 . . Feedback Events . | . . . . . . . . . . . . . . . . . Feedback Blocked . | . . . . . . . . . . . . . . . . . Robot Schematics Acquired . | . . . . . . . . . . . . . . . . . Robots Built . | . . . . . . . . . . . . . . . . . Matter . | . . . . . . . . . . . . . . . . . Time . | . . . . . . . . . . . . . . . . . Total Robot Build Rating . | . . . . . . . . . . . . . . . . . Part Schematics Acquired 6 | . . . . . . 5 . . . . . 1 . . . . Parts Built 4 | . . . . . . . . . 1 . 1 . . 2 . . Matter 570 | . . . . . . . . . 146 . 146 . . 278 . . Time 215 | . . . . . . . . . 73 . 73 . . 69 . . Total Part Build Rating 24 | . . . . . . . . . 3 . 3 . . 18 . . Parts Repaired . | . . . . . . . . . . . . . . . . . Time . | . . . . . . . . . . . . . . . . . Parts Recycled . | . . . . . . . . . . . . . . . . . Recycled Matter . | . . . . . . . . . . . . . . . . . Retrieved Matter . | . . . . . . . . . . . . . . . . . Retrieved Components . | . . . . . . . . . . . . . . . . . Parts Scanalyzed 7 | . . . . . . 6 . . . . . 1 . . . . Part Schematics Acquired 6 | . . . . . . 5 . . . . . 1 . . . . Parts Damaged 1 | . . . . . . . . . . . . 1 . . . . Bothacking | -11 -10 -10 -10 -9 -8 -7 -7 -7 -6 -6 -6 -5 -4 -3 -2 -2 ------------ Run | Scr Mat Min Exi Min Mat Fac Was Fac Fac Was Fac Fac Fac Res Res Tes Used RIF Installer . | . . . . . . . . . . . . . . . . . Robots Hacked . | . . . . . . . . . . . . . . . . . Non-combat . | . . . . . . . . . . . . . . . . . Combat . | . . . . . . . . . . . . . . . . . Robot Hacks Applied . | . . . . . . . . . . . . . . . . . Relay Couplers Released . | . . . . . . . . . . . . . . . . . Robots Rewired . | . . . . . . . . . . . . . . . . . Allies Hacked . | . . . . . . . . . . . . . . . . . Hacks Repelled . | . . . . . . . . . . . . . . . . . Allies | -11 -10 -10 -10 -9 -8 -7 -7 -7 -6 -6 -6 -5 -4 -3 -2 -2 -------- Run | Scr Mat Min Exi Min Mat Fac Was Fac Fac Was Fac Fac Fac Res Res Tes Total Allies 1 | . . . . . . . . . . 1 . . . . . . Largest Group 1 | . . . . . . . . . . 1 . . . . . . Highest-Rated Group 31 | . . . . . . . . . . 31 . . . . . . Highest-Rated Ally 31 | . . . . . . . . . . 31 . . . . . . Total Orders . | . . . . . . . . . . . . . . . . . Ally Attacks 5 | . . . . . . . . . . 5 . . . . . . Total Damage 103 | . . . . . . . . . . 103 . . . . . . Kills . | . . . . . . . . . . . . . . . . . Allies Corrupted . | . . . . . . . . . . . . . . . . . Allies Melted . | . . . . . . . . . . . . . . . . . Intel | -11 -10 -10 -10 -9 -8 -7 -7 -7 -6 -6 -6 -5 -4 -3 -2 -2 ------- Run | Scr Mat Min Exi Min Mat Fac Was Fac Fac Was Fac Fac Fac Res Res Tes Robot Analysis Total 3 | . 1 . . . 2 . . . . . . . . . . . Derelict Logs Recovered . | . . . . . . . . . . . . . . . . . Drone Launches . | . . . . . . . . . . . . . . . . . Drone Recoveries . | . . . . . . . . . . . . . . . . . Exploration | -11 -10 -10 -10 -9 -8 -7 -7 -7 -6 -6 -6 -5 -4 -3 -2 -2 ------------- Run | Scr Mat Min Exi Min Mat Fac Was Fac Fac Was Fac Fac Fac Res Res Tes Turns Passed 8590 | . 809 118 434 443 876 947 127 289 149 70 1891 779 189 789 448 232 Spaces Moved 8209 | 1 386 59 240 246 452 463 139 383 120 89 2214 1218 263 1097 466 373 Core 908 | . . . . . . . 72 352 . 83 119 . . 16 56 210 Treads 1821 | . 354 59 240 246 452 463 7 . . . . . . . . . Legs 33 | 1 32 . . . . . . . . . . . . . . . Wheels . | . . . . . . . . . . . . . . . . . Hover 5364 | . . . . . . . . 31 120 6 2095 1218 263 1081 410 140 Flight 83 | . . . . . . . 60 . . . . . . . . 23 Fastest Speed 40 | 120 120 180 180 180 180 180 40 50 70 50 50 53 53 40 50 40 Average Speed 88 | 120 171 180 180 180 180 180 81 56 71 74 70 56 53 54 62 49 Slowest Speed 1500 | 120 180 180 180 180 180 180 200 100 130 200 130 58 53 1500 240 150 Overloaded Moves . | . . . . . . . . . . . . . . . . . Propulsion Burnouts . | . . . . . . . . . . . . . . . . . Robots Hopped . | . . . . . . . . . . . . . . . . . Cave-ins Triggered . | . . . . . . . . . . . . . . . . . Exploration Rate (%) 34 | 2 59 7 60 68 27 12 79 11 4 90 43 31 6 36 15 34 Regions Visited 16 Branch Regions 4 Pre-discovered Areas 4 | . 2 . 1 . 1 . . . . . . . . . . . Known Exits Taken 6 | . . . . . 1 . . 1 . . 1 1 1 1 . . Unknown Exits Taken 6 | 1 1 1 1 1 . . . . . . . . . . 1 . Scrap Searched 1 | . . 1 . . . . . . . . . . . . . . Spaces Dug 49 | . . . . . . . . 1 . . 13 5 2 28 . . Terrain Destroyed 138 | . 8 . . . 37 . . 1 . . 19 5 2 57 9 . Melee 47 | . . . . . . . . 1 . . 13 5 2 26 . . Projectile 26 | . . . . . . . . . . . 6 . . 11 9 . AOE 65 | . 8 . . . 37 . . . . . . . . 20 . . Terrain Rammed . | . . . . . . . . . . . . . . . . . Walls Destroyed . | . . . . . . . . . . . . . . . . . Machines Disabled . | . . . . . . . . . . . . . . . . . Actions | -11 -10 -10 -10 -9 -8 -7 -7 -7 -6 -6 -6 -5 -4 -3 -2 -2 --------- Run | Scr Mat Min Exi Min Mat Fac Was Fac Fac Was Fac Fac Fac Res Res Tes Total 9260 | . 474 63 243 247 487 569 156 452 182 91 2494 1297 308 1203 578 416 Wait 528 | . 28 . . . . 56 . 60 54 . 164 40 40 9 66 11 Move 8195 | . 385 58 239 245 451 463 138 382 120 88 2213 1217 262 1096 465 373 Hop . | . . . . . . . . . . . . . . . . . Pick Up 68 | . 13 1 2 1 5 9 1 . . . 14 7 2 8 5 . Fast Attach 73 | . 5 . . . 4 3 4 4 5 1 14 4 . 6 13 10 Attach 50 | . 2 . . . 1 4 . 2 . 1 16 3 2 14 3 2 Detach 27 | . . . . . 1 2 1 2 2 1 12 . . 3 1 2 Swap 30 | . 4 . . . 7 8 1 . . . 8 2 . . . . Drop 80 | . 7 . 2 1 4 16 11 1 1 . 14 6 . 15 2 . Fire 103 | . 30 4 . . 14 8 . . . . 3 . . 22 22 . Melee 62 | . . . . . . . . 1 . . 27 5 2 27 . . Ram 18 | . . . . . . . . . . . 9 . . 3 1 5 Kick . | . . . . . . . . . . . . . . . . . Crush . | . . . . . . . . . . . . . . . . . Escape Stasis 26 | . . . . . . . . . . . . 13 . . . 13 Rewire . | . . . . . . . . . . . . . . . . . Trap . | . . . . . . . . . . . . . . . . . Miscellaneous . | . . . . . . . . . . . . . . . . . Route ------- -11/Scrapyard -10/Materials (discovered 3 exits: [*Mat x2] / [*Min]) -10/Mines -10/Exiles -9/Mines -8/Materials (discovered 3 exits: *Fac x3) -7/Factory -7/Waste -7/Factory -6/Factory -6/Waste -6/Factory (discovered 3 exits: *Fac / *Low x2) -5/Factory (discovered 2 exits: *Fac / *Ext) -4/Factory -3/Research (discovered 2 exits: *Res / *Qua) -2/Research -2/Testing History --------- Turn | Location | Event 1 | -11/Scrapyard | Discovered new exit (range 0) 1 | -11/Scrapyard | Entered Materials 311 | -10/Materials | Build established: Mutant 315 | -10/Materials | Discovered new exit (range 16) 611 | -10/Materials | Discovered new exit (range 16) 744 | -10/Materials | Discovered new exit (range 8) 810 | -10/Materials | Entered Mines 846 | -10/Mines | Met a Derelict bent on vengeance 919 | -10/Mines | Deemed a non-threat by the Exiles lab entrance 921 | -10/Mines | Discovered new exit (range 5) 928 | -10/Mines | Entered Exiles 973 | -10/Exiles | Met 8R-AWN 1002 | -10/Exiles | Met EX-HEX 1054 | -10/Exiles | Met EX-BIN 1076 | -10/Exiles | Aligned with FarCom system 1078 | -10/Exiles | Given EX-Vault access code 1125 | -10/Exiles | Opened EX-Vault 1140 | -10/Exiles | Found AWS/Thermal 1182 | -10/Exiles | Warned to stay clear of 0b10 Research branches 1231 | -10/Exiles | Met EX-DEC 1238 | -10/Exiles | Learned location of Zion (-7) 1347 | -10/Exiles | Discovered new exit (range 10) 1362 | -10/Exiles | Left Exiles lab with AWS/Thermal 1362 | -10/Exiles | Entered Mines 1735 | -9/Mines | Found a damaged Exp. Sensor Array with a note attached 1739 | -9/Mines | Found Prototype Device 1798 | -9/Mines | Discovered new exit (range 5) 1805 | -9/Mines | Entered Materials 1805 | -8/Materials | Evolved 4 slots: Propulsion x1, Utility x3 1805 | -8/Materials | Identified Exp. Sensor Array 2110 | -8/Materials | Identified exit to Factory 2410 | -8/Materials | Build established: Hauler-Mutant 2681 | -8/Materials | Entered Factory 2681 | -7/Factory | Evolved 2 slots: Propulsion x1, Utility x1 2986 | -7/Factory | Build established: Hauler-Skirmisher 3362 | -7/Factory | Discovered new exit (range 6) 3376 | -7/Factory | Identified exit to Lower Caves 3576 | -7/Factory | Build established: Hauler-Mutant 3628 | -7/Factory | Sucked down chute 3628 | -7/Factory | Entered Waste 3643 | -7/Waste | EMP discharged 3643 | -7/Waste | System corruption reached 10% 3668 | -7/Waste | Spotted C-40 Crusher 3702 | -7/Waste | Spotted C-40 Crusher 3704 | -7/Waste | Spotted C-40 Crusher 3727 | -7/Waste | Spotted C-40 Crusher 3743 | -7/Waste | EMP discharged 3743 | -7/Waste | Spotted C-40 Crusher 3743 | -7/Waste | Spotted C-40 Crusher 3744 | -7/Waste | Discovered new exit (range 10) 3754 | -7/Waste | Crushed by Compactor (1 part destroyed, 1 dropped) 3754 | -7/Waste | Identified exit to Factory 3755 | -7/Waste | Entered Factory 4031 | -7/Factory | Discovered new exit (range 4) 4033 | -7/Factory | Identified exit to Factory 4043 | -7/Factory | Build established: Mutant 4044 | -7/Factory | Entered another Factory area 4044 | -6/Factory | Evolved 2 slots: Power x1, Utility x1 4167 | -6/Factory | Fabricated Hacking Suite (x1) 4193 | -6/Factory | Sucked down chute 4193 | -6/Factory | Entered Waste 4194 | -6/Waste | Met a frightened Derelict 4202 | -6/Waste | Spotted C-40 Crusher 4208 | -6/Waste | EMP discharged 4225 | -6/Waste | Crushed by Compactor (1 part destroyed, 2 dropped) 4228 | -6/Waste | Crushed by Compactor (1 part destroyed, 2 dropped) 4240 | -6/Waste | Spotted C-40 Crusher 4243 | -6/Waste | Spotted C-40 Crusher 4243 | -6/Waste | Spotted C-40 Crusher 4243 | -6/Waste | Spotted C-40 Crusher 4244 | -6/Waste | Spotted C-40 Crusher 4258 | -6/Waste | Discovered new exit (range 10) 4262 | -6/Waste | Identified exit to Factory 4263 | -6/Waste | Entered Factory 5567 | -6/Factory | Discovered new exit (range 14) 5588 | -6/Factory | Identified exit to Lower Caves 5612 | -6/Factory | Lost 3 parts (1p1n1u) 5931 | -6/Factory | Discovered exit to Lower Caves (range 11) 6094 | -6/Factory | Fabricated Hacking Suite (x1) 6152 | -6/Factory | Discovered new exit (range 4) 6153 | -6/Factory | Identified exit to Factory 6154 | -6/Factory | Entered another Factory area 6154 | -5/Factory | Evolved 2 slots: Propulsion x1, Utility x1 6263 | -5/Factory | Discovered new exit (range 11) 6268 | -5/Factory | Identified exit to Extension 6431 | -5/Factory | Build established: Hacker-Mutant 6920 | -5/Factory | Discovered new exit (range 4) 6925 | -5/Factory | Identified exit to Factory 6933 | -5/Factory | Entered another Factory area 6933 | -4/Factory | Evolved 2 slots: Utility x2 6979 | -4/Factory | Discovered new exit (range 7) 6981 | -4/Factory | Identified exit to Research 7122 | -4/Factory | Entered Research 7122 | -3/Research | Evolved 2 slots: Propulsion x1, Utility x1 7239 | -3/Research | Fabricated Enh. Quantum Rifle? 7443 | -3/Research | Discovered new exit (range 16) 7451 | -3/Research | Identified exit to Quarantine 7502 | -3/Research | Spotted B-86 Titan 7769 | -3/Research | System corruption reached 10% 7802 | -3/Research | Lost 11 parts (2p1n6u2w) 7900 | -3/Research | Core integrity fell below 50% 7909 | -3/Research | Discovered new exit (range 5) 7911 | -3/Research | Identified exit to Research 7911 | -3/Research | Entered another Research area 7911 | -2/Research | Evolved 2 slots: Utility x2 7927 | -2/Research | Lost 9 parts (3p4n1u1w) 7996 | -2/Research | Found Prototype Device 7996 | -2/Research | Identified Exp. Thermal Shield 8317 | -2/Research | Lost 4 parts (1n3u) 8347 | -2/Research | Released all parts (10) 8355 | -2/Research | Discovered new exit (range 8) 8359 | -2/Research | Entered Testing 8360 | -2/Testing | Maximum security lockdown engaged 8374 | -2/Testing | Lost 6 parts (1p3n2w) 8542 | -2/Testing | Scanned by Researcher 8574 | -2/Testing | Core integrity fell below 50% 8585 | -2/Testing | Core integrity fell below 20% 8591 | -2/Testing | Destroyed by P-80 Master with Gamma Rifle Last Messages --------------- 08567_ C-65 Expert is analyzing... 08568_ Door malfunctions. 08571_ Held in stasis. 08573_ Acquired Imp. Antigrav System. 08574_ Imp. Antigrav System destroyed. 08574_ Mic. Fission Core destroyed. 08580_ Held in stasis. 08580_ C-65 Expert is analyzing... 08584_ Held in stasis. 08584_ C-65 Expert is analyzing... 08586_ C-30 ARC bursts open, deploying its payload. 08586_ G-73 Enforcer unfolds itself. 08586_ L-61 Swordsman unfolds itself. 08586_ B-74 Champion unfolds itself. 08586_ G-73 Enforcer unfolds itself. 08586_ E-15 Imp unfolds itself. 08586_ C-30 ARC bursts open, deploying its payload. 08586_ G-73 Enforcer unfolds itself. 08586_ M-36 Artificer unfolds itself. 08586_ E-15 Imp destroyed. Map ----- +----------------------------------------------------+ | ?????????????????????????????????????????????????? | | ?????????????????????????????????????????????????? | | ?????????????????????????????????????????????????? | | ?????????????????????????????????????????????????? | | ?????????????????????????????????????????????????? | | ?????????????????????????????????????????????????? | | ?????????????????????????????????????????????????? | | ?????????????????????????????????????????????????? | | ?????????????????????????????????????????????????? | | ????????????"????????????????????????????????????? | | ????????????"????????????????????????????????????? | | ???????????? ????????????????????????????????????? | | ???????????? ????????????????????????????????????? | | ???????????? ????????????????????????????????????? | | ????????????/????????????????????????????????????? | | ???????????#C#???????????????????????????????????? | | ??########## #????????????????#??????????????????? | | ??? #C#??????????????? #??????????????????? | | ????" #C#??????????????? #??????????????????? | | ????" " # #?????????????? #??????????????????? | | """ " # #?????????????? +??????????????????? | | ? " # ####?????????? #??????????????????? | | ???"""" # #?????????? #??????????????????? | | """"" + C #????????? #??????????????????? | | " # "gg########## ####???????????????? | | """ " /m g g! b @ #???????????? | | ????" " # ggp=l #???????????? | | ????" # g gg #???????????? | | ?? #=lp gl #???????????? | | # * #################w #???????????? | | ############==cg#?????????????????? #???????????? | | ?# # !gg#????????????????????#???????????? | | ?# //=gbi????????????????????????????????? | | ?# #%ggg#????????????????????????????????? | | ?# #ggbl#????????????????????????????????? | | ?# = ?#g g #????????????????????????????????? | | # ??# #????????????????????????????????? | | # ??#g #????????????????????????????????? | | # ]???# g #????????????????????????????????? | | ######????# #????????????????????????????????? | | #?????????# b#????????????????????????????????? | | #?????????# #????????????????????????????????? | | #?????????# #????????????????????????????????? | | #?????????# "#????????????????????????????????? | | ##?????????# "%#????????????????????????????????? | | ???????????# "###??????????????????????????????? | | ???????????# T"#??????###############?????????? | | ???????????# ""#??????# " #?????????? | | ???????????# ###??????# "%" #?????????? | | ############ ####?????# """ """ #?????????? | +----------------------------------------------------+ Best States ------------- Heat Dissipation 49 Coolant Potential 300 Energy Generation 61 Energy Capacity 500 Matter Stores 300 Matter Capacity 300 Sight Range 16 Robot Scan Range 30 Terrain Scan Density 10 Jamming Range 8 Power Amplification 40 Base Temperature (-) 200 Armor Coverage 525 Resistance: TH 30 Propulsion Shielding 66 Utility Shielding 33 Evasion (%) 67 Targeting Accuracy 18 Target Analysis 5 Core Analysis 10 Recoil Reduction 4 Offensive Hacking 30 Defensive Hacking 10 Item Schematics ----------------- Hacking Suite | -7/Factory | Scanalyzed Imp. Assault Rifle | -7/Factory | Scanalyzed Imp. Signal Interpreter | -7/Factory | Scanalyzed Arc Projector | -7/Factory | Scanalyzed Lrg. Storage Unit | -7/Factory | Scanalyzed Imp. Remote Datajack | -5/Factory | Scanalyzed Robot Schematics ------------------ None Fabricated ------------ Hacking Suite | x1 | -6/Factory Hacking Suite | x1 | -6/Factory Enh. Quantum Rifle | x2 | -3/Research | Preloaded Alien Tech Used ----------------- None Achievements -------------- None Challenges ------------ None Game ------ Seed SwarmDataChip Manual? 0 Play Time 02:15:41 Cumulative 58.6 hours Start 2020.10.11 @ 01:40:18 End 2020.10.11 @ 04:12:57 Sessions 1 Manual Loads 0 Difficulty Rogue Special Mode None Game No. 97 Rogue 97 Adventurer 0 Explorer 0 Win Type - Total 0 Types 0/0/0/0/0/0/0/0/0 Lore% 29 Gallery% 45 Achievement% 32 Wizard Run 0 Options --------- ASCII 1 Keyboard 1 Movement Vi Keybinds 0 Fullscreen 2 Font 24/Terminus Map View 76x50 Tactical HUD 1 Map Filters SATURATION(70) Filters SATURATION(65)|SHIFT_HUE(15) Steam 1 RUN: 1c3761c8-d495-49b3-93e8-ceefe50fd763